Workbook

Sheet Instruction
A2: For Operating Lease
A7: Finance lease

Sheet Operating Lease
F1: 3,000,000.00
A2: Period | B2: Rental Fee Per Month | C2: Rental Fee Per Year | D2: Maitenance and Support - Per Year | E2: Total | F2: Average Usage @ 3m printouts | G2: Total Price
A3: Year 1 | B3: R10,000.00 | C3: =B3*12 -> R120,000.00 | D3: =C3*0.2 -> R24,000.00 | E3: =SUM(C3+D3) -> R144,000.00 | F3: =$F$1*B21 -> 1,849,830.63 | G3: =SUM(E3:F3) -> R1,993,830.63
A4: Year 2 | B4: 11,000.00 | C4: =B4*12 -> R132,000.00 | D4: =C4*0.2 -> R26,400.00 | E4: =SUM(C4+D4) -> R158,400.00 | F4: =$F$1*C21 -> 1,942,322.16 | G4: =SUM(E4:F4) -> R2,100,722.16
A5: Year 3 | B5: 12,000.00 | C5: R144,000.00 | D5: R28,800.00 | E5: R172,800.00 | F5: =$F$1*D21 -> 2,039,438.27 | G5: R2,212,238.27
A6: Total | B6: =SUM(B3:B5) -> R33,000.00 | C6: =SUM(C3:C5) -> R396,000.00 | D6: R79,200.00 | E6: R475,200.00 | F6: R5,831,591.05 | G6: R6,306,791.05
A8: Usage Fee | B8: Color printer
B9: Year 1 | C9: Year 2 | D9: Year 3
A10: Usage Bracket | B10: Rate Per Page | C10: Rate Per Page | D10: Rate Per Page
G11: 13,000,000.00
A12: 0 - 50 000 | B12: 1.50 | C12: =B12*1.05 -> 1.58 | D12: =C12*1.05 -> 1.65 | E12: 50,000.00 | F12: =E12*12 -> 600,000.00 | G12: =F12/$G$11 -> 5%
A13: 50 001 - 75 000 | B13: =B12*0.75 -> 1.13 | C13: =B13*1.05 -> 1.18 | D13: 1.24 | E13: =E12+25000 -> 75,000.00 | F13: =E13*12 -> 900,000.00 | G13: =F13/$G$11 -> 7% | H13: =SUM(E13-E12)/E12 -> 50%
A14: 75 001 - 100 000 | B14: =B13*0.75 -> 0.84 | C14: =B14*1.05 -> 0.89 | D14: 0.93 | E14: =E13+25000 -> 100,000.00 | F14: 1,200,000.00 | G14: 9%
A15: 100 001 - 125 000 | B15: 0.63 | C15: =B15*1.05 -> 0.66 | D15: 0.70 | E15: 125,000.00 | F15: 1,500,000.00 | G15: 12%
A16: 125 001 - 150 000 | B16: 0.47 | C16: =B16*1.05 -> 0.50 | D16: 0.52 | E16: 150,000.00 | F16: 1,800,000.00 | G16: 14%
A17: 175 001 - 200 000 | B17: 0.36 | C17: =B17*1.05 -> 0.37 | D17: 0.39 | E17: 175,000.00 | F17: 2,100,000.00 | G17: 16%
A18: 200 001 - 225 000 | B18: 0.27 | C18: =B18*1.05 -> 0.28 | D18: 0.29 | E18: 200,000.00 | F18: 2,400,000.00 | G18: 18%
A19: 225 001 - 250 000 | B19: 0.20 | C19: =B19*1.05 -> 0.21 | D19: 0.22 | E19: 225,000.00 | F19: 2,700,000.00 | G19: 21%
A20: 225 001 > | B20: 0.15 | C20: =B20*1.05 -> 0.16 | D20: 0.17 | E20: 250,000.00 | F20: 3,000,000.00 | G20: 23%
A21: Average Usage fee | B21: =AVERAGE(B12:B20) -> 0.62 | C21: =AVERAGE(C12:C20) -> 0.65 | D21: 0.68

Sheet Finance Lease
A1: Capital | B1: 0 | C1: Client Input
A2: Interest rate | B2: 0.00% | C2: Client Input
A3: Term | B3: 3
A4: Payment | B4: =-ROUND(PMT(B2/12,B3*12,B1),2) -> R0.00
A6: Summary of Amortisation Table | E6: Client Input
A7: Period | B7: Capital | C7: Interest | D7: Payment | E7: Maitenance and Support Per Year | F7: Total
A8: Year 1 | B8: =SUM(B16:B27) -> R0.00 | C8: =SUM(C16:C27) -> R0.00 | D8: R0.00 | F8: =SUM(B8:C8)+E8 -> R0.00
A9: Year 2 | B9: =SUM(B28:B39) -> 0 | C9: =SUM(C28:C39) -> 0 | D9: 0 | F9: =SUM(B9:C9)+E9 -> R0.00
A10: Year 3 | B10: =SUM(B40:B51) -> 0 | C10: =SUM(C40:C51) -> 0 | D10: 0 | F10: R0.00
A11: Total | B11: =SUM(B8:B10) -> R0.00 | C11: =SUM(C8:C10) -> R0.00 | D11: R0.00 | E11: =SUM(E8:E10) -> R0.00 | F11: =SUM(F8:F10) -> R0.00
A13: Detail Amortisation Table
A14: Period | B14: Principal | C14: Interest | D14: Payment | E14: Balance
A15: 0 | E15: =B1 -> 0
A16: 1 | B16: =D16-C16 -> R0.00 | C16: =ROUND(E15*$B$2/12,2) -> 0 | D16: =$B$4 -> R0.00 | E16: =E15-B16 -> 0
A17: 2 | B17: =D17-C17 -> 0 | C17: =ROUND(E16*$B$2/12,2) -> 0 | D17: =$B$4 -> R0.00 | E17: =E16-B17 -> 0
A18: 3 | B18: 0 | C18: 0 | D18: R0.00 | E18: 0
A19: 4 | B19: 0 | C19: 0 | D19: R0.00 | E19: 0
A20: 5 | B20: 0 | C20: 0 | D20: R0.00 | E20: 0
A21: 6 | B21: 0 | C21: 0 | D21: R0.00 | E21: 0
A22: 7 | B22: 0 | C22: 0 | D22: R0.00 | E22: 0
A23: 8 | B23: 0 | C23: 0 | D23: R0.00 | E23: 0
A24: 9 | B24: 0 | C24: 0 | D24: R0.00 | E24: 0
A25: 10 | B25: 0 | C25: 0 | D25: R0.00 | E25: 0
A26: 11 | B26: 0 | C26: 0 | D26: R0.00 | E26: 0
A27: 12 | B27: 0 | C27: 0 | D27: R0.00 | E27: 0
A28: 13 | B28: 0 | C28: 0 | D28: R0.00 | E28: 0
A29: 14 | B29: 0 | C29: 0 | D29: R0.00 | E29: 0
A30: 15 | B30: 0 | C30: 0 | D30: R0.00 | E30: 0
A31: 16 | B31: 0 | C31: 0 | D31: R0.00 | E31: 0
A32: 17 | B32: 0 | C32: 0 | D32: R0.00 | E32: 0
A33: 18 | B33: 0 | C33: 0 | D33: R0.00 | E33: 0
A34: 19 | B34: 0 | C34: 0 | D34: R0.00 | E34: 0
A35: 20 | B35: 0 | C35: 0 | D35: R0.00 | E35: 0
A36: 21 | B36: 0 | C36: 0 | D36: R0.00 | E36: 0
A37: 22 | B37: 0 | C37: 0 | D37: R0.00 | E37: 0
A38: 23 | B38: 0 | C38: 0 | D38: R0.00 | E38: 0
A39: 24 | B39: 0 | C39: 0 | D39: R0.00 | E39: 0
A40: 25 | B40: 0 | C40: 0 | D40: R0.00 | E40: 0
A41: 26 | B41: 0 | C41: 0 | D41: R0.00 | E41: 0
A42: 27 | B42: 0 | C42: 0 | D42: R0.00 | E42: 0
A43: 28 | B43: 0 | C43: 0 | D43: R0.00 | E43: 0
A44: 29 | B44: 0 | C44: 0 | D44: R0.00 | E44: 0
A45: 30 | B45: 0 | C45: 0 | D45: R0.00 | E45: 0
A46: 31 | B46: 0 | C46: 0 | D46: R0.00 | E46: 0
A47: 32 | B47: 0 | C47: 0 | D47: R0.00 | E47: 0
A48: 33 | B48: 0 | C48: 0 | D48: R0.00 | E48: 0
A49: 34 | B49: 0 | C49: 0 | D49: R0.00 | E49: 0
A50: 35 | B50: 0 | C50: 0 | D50: R0.00 | E50: 0
A51: 36 | B51: 0 | C51: 0 | D51: R0.00 | E51: 0

Sheet Outright Purchase
